bitfinex/quotes_ETHUSD_20251017
["timestamp","ask_amount","ask_price","bid_price","bid_amount"]
[1760693646276,0.04634502,3761.6,3760.8,2.65896473]
[1760693646438,0.17914502,3761.6,3761.2,0.2155]
[1760693646978,0.0012,3762.5,3761.3,0.432]
[1760693647340,0.14653604,3762.4,3760.8,0.432]
[1760693647543,0.14653604,3762.4,3760.9,2.791]
[1760693647544,0.1002,3762.3,3760.9,2.791]
[1760693647787,2.65813557,3762.1,3761.3,2.65859617]
[1760693647990,0.04633604,3762.4,3761.3,0.69785962]
[1760693648291,0.0012,3762.5,3762.0,2.65810153]
[1760693648643,0.04753335,3762.5,3762.0,2.65810153]
[1760693648853,0.04753335,3762.5,3762.1,2.65808596]
[1760693649495,0.04753335,3762.5,3762.2,2.65796232]
[1760693649693,0.04753335,3762.5,3762.1,2.65806574]
[1760693650099,0.0012,3762.5,3761.5,2.792]
[1760693650298,0.0012,3762.5,3761.5,3.13595]
[1760693650489,0.0012,3762.5,3761.6,0.432]
[1760693650688,0.0012,3762.5,3762.1,2.65803111]
[1760693650895,0.0012,3762.5,3762.4,2.65787795]
[1760693651065,0.0012,3762.5,3762.0,3.0901157]
[1760693651266,0.0012,3762.5,3761.5,3.13595]
[1760693651467,0.0012,3762.5,3762.0,2.65814334]
[1760693651680,0.0012,3762.5,3762.1,2.65808819]
[1760693651884,2.65795656,3762.3,3761.6,2.79]
[1760693652082,0.0012,3762.5,3761.6,2.79]
[1760693652281,0.0012,3762.5,3761.7,0.45858372]
[1760693652465,0.0012,3762.5,3762.4,2.65787795]
[1760693652670,0.0012,3762.5,3761.7,0.432]
[1760693652879,2.65901889,3762.5,3761.8,3.24629771]
[1760693653078,0.0012,3762.5,3761.7,0.432]
[1760693653301,0.0012,3762.5,3762.1,2.65808681]
[1760693653706,0.0993,3762.4,3761.6,2.79]
[1760693653892,2.65802261,3762.2,3761.6,2.79]
[1760693654092,0.0012,3762.5,3761.2,3.0045]
[1760693654296,2.65788574,3762.4,3761.5,2.65851389]
[1760693654494,2.65788574,3762.4,3761.4,0.432]
[1760693654495,2.65903433,3762.5,3761.8,2.65823291]
[1760693654808,2.65788734,3762.4,3761.7,2.65835891]
[1760693655007,2.65788734,3762.4,3761.8,2.65830144]
[1760693655502,2.65902104,3762.5,3761.8,2.65830144]
[1760693655709,0.0012,3762.5,3762.4,2.65787795]
[1760693655909,0.0012,3762.5,3762.4,3.08987795]
[1760693656678,0.0012,3762.5,3762.4,3.11645672]
[1760693656877,0.0012,3762.5,3762.4,3.24925672]
[1760693657122,0.0012,3762.5,3762.4,3.22267795]
[1760693657418,0.0012,3762.5,3762.4,9.8760329]
[1760693657627,0.0012,3762.5,3762.4,10.48305413]
[1760693657938,0.0004,3762.5,3762.4,10.48305413]
[1760693658531,0.0004,3762.5,3762.4,15.31220013]
[1760693659488,0.0004,3762.5,3762.4,21.47740113]
[1760693660493,0.0004,3762.5,3762.4,0.86696418]
[1760693660702,0.0004,3762.5,3762.4,2.65787795]
[1760693661033,0.0004,3762.5,3762.4,8.45571695]
[1760693661340,0.0004,3762.5,3762.4,9.08931695]
[1760693661618,0.0004,3762.5,3762.4,33.86958522]
[1760693662186,1e-08,3763.7,3763.6,2.6570305]
[1760693662526,1e-08,3763.7,3763.6,3.18844554]
[1760693663802,1e-08,3763.7,3763.4,2.79]
[1760693664227,1e-08,3763.7,3762.8,0.4457]
[1760693664228,1e-08,3763.7,3763.5,2.65703598]
[1760693664435,1e-08,3763.7,3762.7,2.65763487]
[1760693664612,1e-08,3763.7,3761.1,2.65878549]
[1760693664613,0.1013,3763.6,3761.1,26.40511627]
[1760693664953,2.65738954,3763.1,3761.4,2.65858456]
[1760693665154,0.1022,3763.4,3761.5,26.85081627]
[1760693665447,2.65730648,3763.3,3761.8,2.65828983]
[1760693665648,0.14852653,3763.4,3762.6,2.65772715]
[1760693665849,0.14852653,3763.4,3761.9,2.65817716]
[1760693666150,0.14852653,3763.4,3762.7,2.65761431]
[1760693666358,0.14852653,3763.4,3762.2,2.79]
[1760693666646,0.14852653,3763.4,3762.9,2.65747396]
[1760693666847,0.14852653,3763.4,3763.0,2.6574518]
[1760693667051,0.1022,3763.3,3762.3,2.6578829]
[1760693667236,0.2973,3763.2,3762.2,2.79]
[1760693667420,0.1328,3762.8,3762.3,2.65790203]
[1760693667622,0.1328,3762.8,3762.4,2.65787685]
[1760693667821,0.1328,3762.8,3762.5,2.65780004]
[1760693668022,0.04632686,3763.0,3762.7,2.65766603]
[1760693668223,0.1328,3763.5,3763.2,2.65730973]
[1760693668449,0.1328,3763.5,3762.9,2.65752478]
[1760693668450,0.2318,3763.5,3762.9,2.65750068]
[1760693668649,0.2318,3763.5,3762.7,2.9228]
[1760693668650,0.1328,3763.5,3762.7,2.9228]
[1760693668852,0.1328,3763.5,3763.4,2.6571717]
[1760693669051,0.1328,3763.5,3762.5,26.94997784]
[1760693669052,1e-08,3763.7,3762.5,0.54486157]
[1760693669223,0.099,3763.6,3762.5,2.79]
[1760693669423,2.65703011,3763.7,3762.6,0.02657736]
[1760693669656,2.65703558,3763.6,3762.9,2.65747758]
[1760693669960,0.04632096,3763.5,3762.7,3.10332806]
[1760693670150,0.04632096,3763.5,3763.4,2.65716701]
[1760693670653,1e-08,3763.7,3763.6,2.6570305]
[1760693671155,1e-08,3763.7,3763.6,3.21502055]
[1760693671326,1e-08,3763.7,3763.6,2.6570305]
[1760693671652,1e-08,3763.7,3763.6,2.6836008]
[1760693672160,1e-08,3763.7,3763.6,43.00853677]
[1760693672362,0.00118717,3764.3,3764.2,2.65660698]
[1760693672526,0.00118717,3764.3,3764.2,5.71726768]
[1760693672724,0.00118717,3764.3,3764.2,6.16296768]
[1760693673047,0.00118717,3764.3,3764.2,5.71726768]
[1760693673223,0.00118717,3764.3,3764.2,6.16296768]
[1760693674634,0.00118717,3764.3,3764.2,47.57951995]
[1760693675335,0.00118717,3764.3,3764.2,48.21311995]
[1760693675631,0.00118717,3764.3,3764.2,43.03738095]
[1760693675866,0.00118717,3764.3,3764.2,42.40378095]
[1760693676582,1e-08,3764.8,3764.2,50.08864295]
[1760693676866,1e-08,3764.8,3764.7,44.85392942]
[1760693677027,1e-08,3764.8,3764.7,4.77318215]
[1760693677228,1e-08,3764.8,3764.7,9.74028169]
[1760693677427,1e-08,3764.8,3764.7,10.34731915]
[1760693677665,1e-08,3764.8,3764.7,12.97979868]
[1760693678326,1.2906899,3765.9,3765.8,2.65547825]
[1760693678523,1.2906899,3765.9,3765.8,5.44747825]
[1760693679071,1.2906899,3765.9,3765.8,5.57947825]
[1760693679563,1.2906899,3765.9,3765.8,5.44747825]
[1760693679765,1.2906899,3765.9,3765.8,2.792]
[1760693679965,1.2906899,3765.9,3765.8,5.72667825]
[1760693680373,1.2906899,3765.9,3765.8,6.17237825]
[1760693680664,1.2906899,3765.9,3765.8,5.72667825]
[1760693681366,1.2906899,3765.9,3765.8,9.06311825]
[1760693681670,1.2906899,3765.9,3765.8,3.0712]
[1760693681966,1.2906899,3765.9,3765.5,2.789]
[1760693681967,1.5904899,3765.9,3765.5,2.789]
[1760693682154,0.3006,3765.8,3765.5,2.789]
[1760693682354,0.3006,3765.8,3765.7,2.65554876]
[1760693682527,1.4935899,3765.9,3765.7,2.65554239]
[1760693682729,0.099,3765.8,3765.5,2.789]
[1760693682986,1.2898899,3765.9,3765.8,2.65547825]
[1760693683190,1.2898899,3765.9,3765.8,3.19992608]
[1760693684089,1.2898899,3765.9,3765.8,5.98892608]
[1760693684391,1.2898899,3765.9,3765.8,7.06822608]
[1760693684802,1.2898899,3765.9,3765.8,6.43462608]
[1760693685292,1.2898899,3765.9,3765.8,5.98892608]
[1760693685467,1.2898899,3765.9,3765.8,6.43462608]
[1760693685668,1.2898899,3765.9,3765.8,13.32639008]
[1760693685882,1.2898899,3765.9,3765.8,11.71058208]
[1760693686076,1.2898899,3765.9,3765.8,8.50570608]
[1760693686487,1.2898899,3765.9,3765.8,5.98892608]
[1760693686997,1.2898899,3765.9,3765.8,5.44447825]
[1760693687978,1.5925899,3765.9,3765.8,5.44447825]
[1760693688267,1.2898899,3765.9,3765.8,5.44447825]
[1760693688671,1.2898899,3765.9,3765.8,5.89017825]
[1760693689107,0.04628895,3766.8,3766.7,2.65484376]
[1760693689261,0.04628895,3766.8,3766.7,5.43984376]
[1760693689468,1.33346898,3766.9,3766.8,2.65477328]
[1760693689663,1.33346898,3766.9,3766.8,3.10047328]
[1760693689890,1e-08,3766.9,3766.8,6.49855281]
[1760693690191,1e-08,3766.9,3766.8,12.40583881]
[1760693691027,1e-08,3766.9,3766.8,10.88230881]
[1760693691189,1e-08,3766.9,3766.8,11.51590881]
[1760693691874,1e-08,3766.9,3766.8,11.07020881]
[1760693692082,1e-08,3766.9,3766.8,9.23447481]
[1760693692377,1e-08,3766.9,3766.8,12.40018681]
[1760693692711,1e-08,3766.9,3766.8,10.26315181]
[1760693693009,1e-08,3766.9,3766.8,11.56315181]
[1760693693213,1.37624806,3768.0,3767.9,2.65399824]
[1760693693420,2.86095891,3771.0,3769.0,2.65322366]
[1760693693421,1.87807472,3770.1,3769.0,2.65322366]
[1760693693615,1.87807472,3770.1,3769.0,12.89392266]
[1760693693616,1e-08,3769.1,3769.0,12.89392266]
[1760693693922,1e-08,3769.1,3769.0,10.16741466]
[1760693694090,0.10010001,3769.1,3767.9,1.60488586]
[1760693694294,0.1011,3769.0,3768.0,2.8]
[1760693694537,0.3027,3768.9,3768.1,2.8]
[1760693694818,2.75237609,3768.8,3768.0,2.8]
[1760693694975,2.75243688,3768.7,3767.7,2.8]
[1760693695182,2.75243688,3768.7,3765.9,6.4497428]
[1760693695183,0.208,3767.8,3766.2,0.2339]
[1760693695483,0.208,3767.8,3766.7,2.72615]
[1760693695705,0.1001,3767.7,3766.8,0.93770728]
[1760693695908,0.1001,3767.7,3767.3,2.6544119]
[1760693696226,0.1001,3767.7,3767.0,2.65457371]
[1760693696394,0.1001,3767.6,3766.9,2.802]
[1760693696581,0.1001,3767.5,3766.6,2.801]
[1760693696921,0.208,3767.8,3766.7,2.801]
[1760693696922,0.1001,3767.7,3766.7,2.801]
[1760693697217,0.1001,3767.6,3766.7,2.801]
[1760693697426,0.208,3767.8,3767.7,2.65413912]
[1760693697606,0.41636835,3768.2,3767.5,2.803]
[1760693697805,0.1012,3768.2,3767.5,2.803]
[1760693698029,0.1012,3768.2,3767.6,0.02654209]
[1760693698232,2.85699696,3768.9,3768.2,2.65378695]
[1760693698233,0.1012,3768.8,3768.2,2.65378695]
[1760693698445,0.2037,3768.9,3768.8,2.65336446]
[1760693698446,0.24995571,3768.9,3768.8,2.65336446]
[1760693698651,0.24995571,3768.9,3768.6,2.804]
[1760693698799,0.24995571,3768.9,3768.7,2.804]
[1760693699154,2.65343487,3768.7,3768.0,2.808]
[1760693699432,0.66809316,3768.6,3767.1,0.2339]
[1760693699631,2.6536461,3768.4,3767.3,2.65440991]
[1760693699836,0.1022,3768.3,3767.7,2.65413111]
[1760693700137,0.2049,3767.8,3767.2,2.808]
[1760693700339,0.3081,3767.8,3767.2,2.808]
[1760693700510,0.1032,3767.7,3766.8,0.001]
[1760693700846,0.2091,3766.9,3766.8,2.809]
[1760693701007,0.208,3767.2,3766.8,2.941]
[1760693701356,0.2049,3768.3,3767.1,0.2193]
[1760693701530,0.13364682,3768.8,3768.1,2.65385738]
[1760693701833,0.2037,3768.9,3768.1,5.68215738]
[1760693702011,0.2037,3768.9,3768.1,5.46285738]
[1760693702209,0.1,3768.6,3768.1,2.809]
[1760693702638,0.2037,3768.9,3768.1,5.68215738]
[1760693702802,2.65344651,3768.7,3767.4,2.809]
[1760693703002,0.1,3768.1,3767.2,2.65448121]
[1760693703201,0.2133,3767.3,3766.8,0.001]
[1760693703412,2.65456023,3767.2,3766.8,0.001]
[1760693703611,2.75671735,3767.2,3766.8,0.001]
[1760693703812,0.2133,3767.3,3766.8,0.001]
[1760693704134,0.2122,3767.5,3766.9,2.65469112]
[1760693704336,0.1033,3767.4,3766.8,0.001]
[1760693704630,2.65457108,3767.1,3766.8,0.001]
[1760693704833,0.1033,3767.4,3766.8,0.001]
[1760693705038,2.7577121,3767.4,3766.8,0.001]
[1760693705240,0.1033,3767.4,3766.8,0.001]
[1760693705402,2.6539028,3766.9,3766.8,0.001]
[1760693705738,0.53085162,3766.9,3766.8,0.001]
[1760693705916,2.65457773,3767.1,3766.8,0.001]
[1760693706113,2.7580028,3766.9,3766.8,0.001]
[1760693706526,4.4860028,3766.9,3766.8,0.001]
[1760693706825,4.53228627,3766.9,3766.8,0.001]
[1760693707134,4.94882244,3766.9,3766.8,0.001]
[1760693707302,5.70916286,3766.9,3766.8,0.001]
[1760693707499,1.32646006,3766.9,3766.8,0.001]
[1760693707747,3.22082244,3766.9,3766.8,0.001]
[1760693707953,4.94882244,3766.9,3766.8,0.001]
[1760693708402,3.22082244,3766.9,3766.8,0.001]
[1760693708952,3.85442244,3766.9,3766.8,0.001]
[1760693709454,3.22082244,3766.9,3766.8,0.001]
[1760693709609,3.98116262,3766.9,3766.8,0.001]
[1760693710142,29.78962661,3766.9,3766.8,0.001]
[1760693710505,5.70916262,3766.9,3766.8,0.001]
[1760693710704,6.34276262,3766.9,3766.8,0.001]
[1760693710907,27.13492381,3766.9,3764.1,0.001]
[1760693711132,4.38315663,3766.3,3764.1,0.001]
[1760693711460,0.1328,3764.5,3764.1,0.001]
[1760693711751,0.1328,3764.5,3764.1,0.2203]
[1760693711951,0.1328,3764.5,3764.2,2.65660698]
[1760693712251,0.1328,3764.7,3764.1,2.6576763]
[1760693712452,0.1328,3764.7,3764.2,2.65660698]
[1760693712603,0.1328,3764.7,3764.1,0.51964763]
[1760693712604,2.6564421,3764.5,3764.1,0.001]
[1760693712943,0.1328,3764.3,3764.1,0.001]
[1760693713241,0.1328,3764.6,3764.2,2.87589591]
[1760693713410,0.1328,3764.6,3764.2,0.2193]
[1760693713737,0.1328,3764.6,3764.3,2.6565364]
[1760693713939,2.65598376,3765.1,3764.1,0.001]
[1760693713940,0.61879825,3765.4,3764.1,0.001]
[1760693714105,0.1093,3764.5,3764.1,0.001]
[1760693714305,0.41669499,3764.9,3764.1,0.001]
[1760693714552,0.41669499,3764.9,3764.1,2.65767325]
[1760693714553,2.65623731,3764.8,3764.1,2.65767325]
[1760693714704,2.65626449,3764.7,3764.1,0.001]
[1760693715053,3.07281971,3764.9,3764.1,0.001]
[1760693715207,0.73490696,3764.9,3764.1,0.001]
[1760693715566,0.1093,3764.8,3764.1,0.001]
[1760693715719,2.76550485,3764.8,3764.1,2.6576291]
[1760693715911,0.1093,3764.8,3764.2,2.65658737]
[1760693716107,0.1093,3764.8,3764.1,0.001]
[1760693716108,0.1093,3764.8,3764.1,2.65763137]
[1760693716303,0.1093,3764.8,3764.1,0.001]
[1760693716521,0.15560031,3764.8,3764.1,0.001]
[1760693716720,2.7024938,3764.8,3764.1,0.001]
[1760693716958,0.04630031,3764.8,3764.3,2.65646934]
[1760693717154,0.15560031,3764.8,3764.1,0.001]
[1760693717591,2.65647379,3764.4,3764.1,0.001]
[1760693717894,2.81184243,3764.8,3764.1,0.001]
[1760693718073,2.81184243,3764.8,3764.1,2.65766803]
[1760693718551,2.65626608,3764.7,3764.1,0.001]
[1760693718775,2.81179104,3764.8,3764.1,2.65765984]
[1760693718967,2.81184903,3764.8,3764.1,2.65765984]
[1760693719166,2.65626414,3764.7,3764.1,2.65765984]
[1760693719475,2.65632648,3764.6,3764.1,0.001]
[1760693719678,2.65628071,3764.7,3764.1,0.001]
[1760693719991,2.65628293,3764.7,3764.1,2.65766642]
[1760693720149,2.81178972,3764.8,3764.1,2.65763259]
[1760693720553,0.04630031,3764.8,3764.2,0.2193]
[1760693720784,0.1093,3764.7,3764.1,0.001]
[1760693720947,2.65660698,3764.2,3764.1,0.001]
[1760693721277,3.18791997,3764.2,3764.1,0.001]
[1760693721648,0.68692664,3764.2,3764.1,0.001]
[1760693721847,0.04631365,3764.2,3764.1,0.001]
[1760693723371,2.81222063,3764.2,3764.1,0.001]
[1760693723884,0.6336,3765.5,3764.1,2.65765633]
[1760693724178,0.41675674,3764.7,3764.2,0.2299]
[1760693724357,0.1328,3764.5,3764.1,0.001]
[1760693724684,0.1328,3764.5,3764.4,2.65646583]
[1760693724881,0.1328,3764.5,3764.2,0.2299]
[1760693725563,2.65618646,3764.8,3764.1,2.65762397]
[1760693725564,2.65633748,3764.6,3764.1,0.001]
[1760693725874,0.1328,3764.3,3764.1,0.001]
[1760693726077,2.65660698,3764.2,3764.1,0.001]
[1760693726283,0.2789407,3764.2,3764.1,0.001]
[1760693726461,0.1093,3764.7,3764.1,0.001]
[1760693726661,0.41671299,3764.9,3764.1,0.001]
[1760693727362,2.65636935,3764.6,3764.1,0.001]
[1760693727784,2.65623626,3764.8,3764.1,2.65762721]
[1760693728112,0.41671299,3764.9,3764.1,0.001]
[1760693728380,2.65635885,3764.6,3764.1,0.001]
[1760693728588,0.0463063,3764.7,3764.2,2.65660185]
[1760693728886,2.65641892,3764.5,3764.1,0.001]
[1760693729076,0.1556063,3764.7,3764.1,0.001]
[1760693729272,0.0455063,3764.7,3764.2,2.65656842]
[1760693729592,0.41671299,3764.9,3764.3,2.65648637]
[1760693729593,3.07284821,3764.9,3764.3,2.65648637]
[1760693729802,0.41671299,3764.9,3764.4,2.65645313]
[1760693729969,2.65619087,3764.8,3764.2,0.2299]
[1760693730380,2.65619087,3764.8,3764.1,2.65762215]
[1760693730381,0.1093,3764.8,3764.1,0.001]
[1760693730561,2.65625415,3764.7,3764.1,0.001]
[1760693730777,2.65625415,3764.7,3764.1,2.6576556]
[1760693730976,0.1093,3764.8,3764.2,2.65659425]
[1760693731179,0.04630748,3764.8,3764.2,2.65659425]
[1760693731376,0.04630748,3764.8,3764.1,2.65765688]
[1760693731575,0.04630748,3764.8,3764.3,2.65650494]
[1760693731798,0.04630748,3764.8,3764.3,2.65653456]
[1760693732012,0.04630748,3764.8,3764.5,2.65633109]
[1760693732177,0.41670524,3765.4,3764.5,3.18767801]
[1760693732376,0.203,3766.3,3764.5,3.18767801]
[1760693732377,0.1102,3766.2,3765.3,0.2299]
[1760693732579,0.04629575,3765.8,3765.3,0.2299]
[1760693732924,2.65536118,3766.0,3765.3,2.65581907]
[1760693733130,2.65547821,3765.9,3765.2,2.65587976]
[1760693733275,2.65547821,3765.9,3765.3,2.65582667]
[1760693733685,0.41656801,3766.1,3765.1,0.2299]
[1760693733918,0.41656801,3766.1,3765.4,2.65574759]
[1760693734190,0.203,3766.3,3765.3,2.65580311]
[1760693734409,3.27468358,3766.3,3765.6,2.65561199]
[1760693734574,2.65521407,3766.2,3765.6,2.65561199]
[1760693734775,2.65527305,3766.1,3765.4,2.65570892]
[1760693735083,2.65527305,3766.1,3765.5,2.65567727]
[1760693735486,2.65535094,3766.0,3765.1,2.88586694]
[1760693735785,2.65536215,3766.0,3764.8,3.0269]
[1760693735988,0.04629064,3765.8,3765.4,2.65575768]
[1760693736192,0.132,3765.5,3765.4,2.65575768]
[1760693736503,0.132,3765.5,3765.1,2.65597195]
[1760693736808,0.1111,3765.4,3764.1,0.7058]
[1760693737016,2.65583543,3765.3,3764.6,2.65627285]
[1760693737183,2.65589496,3765.3,3764.6,2.65627285]
[1760693737378,0.1111,3765.3,3764.5,2.65637474]
[1760693737601,0.1111,3765.3,3764.3,2.65652562]
[1760693737602,2.65590141,3765.2,3764.6,2.65632458]
[1760693737915,2.65590141,3765.2,3764.5,2.65637255]
[1760693738112,2.65590141,3765.2,3764.6,2.65631426]
[1760693738815,2.70205859,3765.4,3764.1,0.7058]
[1760693738816,2.70206867,3765.4,3764.5,2.65639527]
[1760693738998,0.04629825,3765.4,3764.6,0.26829599]
[1760693739201,0.04629825,3765.4,3765.3,2.88573087]
[1760693739512,0.41663452,3765.5,3765.3,3.36063087]
[1760693739809,0.203,3766.3,3765.2,2.65585895]
[1760693740003,2.65539627,3766.0,3765.3,2.6558157]
[1760693740198,0.203,3766.3,3765.3,2.6558157]
[1760693740199,2.65542606,3765.9,3765.3,2.6558157]
[1760693740510,2.6553196,3766.1,3765.1,2.793]
[1760693740808,2.65533888,3766.0,3765.3,2.65576324]
[1760693741109,2.65533888,3766.0,3764.7,2.65619306]
[1760693741110,0.15739235,3765.9,3764.7,2.65619306]
[1760693741324,0.15739235,3765.9,3764.6,2.65632235]
[1760693741615,0.15739235,3765.9,3764.7,2.65625268]
[1760693741616,0.1111,3765.8,3764.7,2.65625268]
[1760693741814,0.1111,3765.8,3764.9,2.65604409]
[1760693741984,0.04629235,3765.9,3765.0,2.65599767]
[1760693742181,2.7017063,3765.9,3765.0,2.65599767]
[1760693742388,0.04629235,3765.9,3765.2,2.65590141]
[1760693742587,0.04629235,3765.9,3765.3,2.65583087]
[1760693742791,0.04629235,3765.9,3765.1,0.2299]
[1760693742998,0.04629235,3765.9,3765.6,2.65555258]
[1760693743205,0.04629235,3765.9,3765.1,0.2299]
[1760693743411,2.65505587,3766.4,3765.8,2.65547825]
[1760693743608,0.04628822,3766.4,3765.7,0.4749]
[1760693743890,2.65496197,3766.6,3765.9,2.65535911]
[1760693744300,0.002,3766.8,3765.9,2.65535911]
[1760693744497,2.65484376,3766.7,3766.0,2.65532483]
[1760693744698,2.65498618,3766.5,3765.9,2.65538148]
[1760693744903,2.65498618,3766.5,3765.8,2.65545151]
[1760693745422,2.65678564,3766.8,3765.9,2.65539059]
[1760693745602,0.002,3766.8,3766.0,2.65530344]
[1760693745804,2.65484376,3766.7,3766.0,2.65530344]
[1760693745998,2.65504138,3766.5,3765.8,2.65544269]
[1760693746203,2.65504138,3766.5,3765.9,2.65540766]
[1760693746403,2.70121142,3766.6,3765.9,2.65540766]
[1760693746598,0.0462861,3766.6,3766.0,2.65528122]
[1760693746798,2.70120517,3766.6,3765.9,2.65538059]
[1760693747102,0.132,3766.0,3765.9,2.65538059]
[1760693747823,0.0462861,3766.6,3766.5,2.65498473]
[1760693748024,0.002,3766.8,3766.7,2.65484376]
[1760693748429,0.002,3766.8,3766.7,3.12974376]
[1760693750291,0.002,3766.8,3766.7,2.65484376]
[1760693750731,0.002,3766.8,3766.7,2.785]
[1760693751241,0.002,3766.8,3766.7,5.43984376]
[1760693751445,0.002,3766.8,3766.7,3.59448172]
[1760693751614,0.002,3766.8,3766.7,5.43984376]
[1760693751812,0.002,3766.8,3766.7,5.90474376]
[1760693753149,0.002,3766.8,3766.7,5.43984376]
[1760693753150,0.0012,3766.8,3766.7,5.43984376]
[1760693753348,2.70072938,3767.7,3767.0,2.65461503]
[1760693753512,3.29929267,3767.7,3767.0,2.65461503]
[1760693753714,0.71016329,3767.7,3766.4,2.65505522]
[1760693754028,2.65450177,3767.2,3766.5,2.65498473]
[1760693754344,0.41638024,3767.8,3766.3,2.785]
[1760693754550,0.41638024,3767.8,3765.4,1.728]
[1760693754551,2.65506245,3766.4,3765.7,0.2291]
[1760693754721,2.65539399,3766.0,3764.9,0.2291]
[1760693754922,2.65539399,3766.0,3764.1,2.8875147]
[1760693754923,0.1,3765.9,3764.8,2.784]
[1760693755136,2.65526012,3766.2,3764.8,3.2489]
[1760693755309,0.41656703,3766.1,3764.9,0.02656113]
[1760693755617,2.3616,3766.9,3765.2,2.65590141]
[1760693755618,1.728,3766.8,3765.2,2.65590141]
[1760693755819,0.04628523,3766.5,3765.3,3.79008014]
[1760693756144,0.04628523,3766.5,3766.4,2.65505522]
[1760693757345,0.04628523,3766.5,3766.4,3.11995522]
[1760693758557,0.04628523,3766.5,3766.4,2.65505522]
[1760693758711,0.04628523,3766.5,3766.0,0.001]
[1760693758911,0.132,3766.4,3766.3,2.65512572]
[1760693759218,0.132,3766.4,3766.1,0.911]
[1760693759441,0.54881547,3766.4,3766.1,0.911]
[1760693759757,0.04628523,3766.5,3766.1,0.911]
[1760693760060,2.7541121,3766.4,3766.1,0.911]
[1760693760226,2.65526672,3766.1,3766.0,0.001]
[1760693760644,0.099,3766.1,3766.0,0.001]
[1760693760960,0.04628825,3766.2,3766.0,0.001]
[1760693761446,2.75426672,3766.1,3766.0,0.001]
[1760693761643,3.03432222,3766.1,3766.0,0.001]
[1760693762013,5.39592222,3766.1,3766.0,0.001]
[1760693762216,4.76232222,3766.1,3766.0,0.001]
[1760693762411,3.03432222,3766.1,3766.0,0.001]
[1760693763041,4.08454249,3766.1,3766.0,0.001]
[1760693763611,3.45094249,3766.1,3766.0,0.001]
[1760693764657,0.69667577,3766.1,3766.0,0.001]
[1760693764870,3.07188699,3766.1,3766.0,0.001]
[1760693765162,3.17088699,3766.1,3766.0,0.001]
[1760693765464,4.89888699,3766.1,3766.0,0.001]
[1760693765749,5.57879837,3766.1,3766.0,0.001]
[1760693767223,12.04879837,3766.1,3766.0,0.001]
[1760693767636,13.51919204,3766.1,3766.0,0.001]
[1760693767820,2.65660698,3764.2,3764.1,0.001]
[1760693768155,4.38460698,3764.2,3764.1,0.001]
[1760693768366,1.728,3764.4,3764.1,0.001]
[1760693768663,0.46312461,3764.2,3764.1,0.001]
[1760693769160,3.11973159,3764.2,3764.1,0.001]
[1760693769329,2.70293682,3764.2,3764.1,0.001]
[1760693770154,30.39167,3764.2,3764.1,0.001]
[1760693770529,3.20272959,3764.2,3764.1,0.001]
[1760693770728,3.10372959,3764.2,3764.1,0.001]
[1760693771056,3.83632959,3764.2,3764.1,0.001]
[1760693771819,2.9732305,3764.2,3764.1,0.001]
[1760693772056,2.70293682,3764.2,3764.1,0.001]
[1760693772358,0.04632984,3764.2,3764.1,0.001]
[1760693772721,2.70293682,3764.2,3764.1,0.001]
[1760693773024,0.04632984,3764.2,3764.1,0.001]
[1760693773242,2.70293682,3764.2,3764.1,0.001]
[1760693773446,3.25213289,3764.2,3764.1,0.001]
[1760693773832,2.70293682,3764.2,3764.1,0.001]
[1760693774436,2.65660698,3764.2,3764.1,0.001]
[1760693774634,9.54325361,3764.4,3764.1,0.001]
[1760693774836,0.41678667,3764.4,3764.1,0.001]
[1760693775020,2.65660698,3764.2,3764.1,0.001]
[1760693775359,3.07326573,3764.4,3764.1,0.001]
[1760693775360,2.65656823,3764.3,3764.1,0.001]
[1760693775523,0.41678667,3764.4,3764.1,0.2295]
[1760693775724,0.41678667,3764.4,3764.2,0.4571]
[1760693775951,0.41678667,3764.4,3764.2,2.65658453]
[1760693776157,2.65612063,3764.9,3764.3,0.4571]
[1760693776361,0.41672237,3765.0,3764.3,0.4571]
[1760693776657,3.07277612,3765.0,3764.3,0.4571]
[1760693776834,2.65630795,3764.7,3764.1,0.2295]
[1760693777034,2.65618245,3764.9,3764.1,0.2295]
[1760693777355,3.07201769,3765.0,3764.3,2.6565364]
[1760693777564,0.41592237,3765.0,3764.2,0.4571]
[1760693777755,0.1328,3764.2,3764.1,0.001]
[1760693777965,0.1328,3764.2,3764.1,2.88617755]
[1760693778139,0.1328,3764.2,3764.1,0.2295]
[1760693778844,0.1328,3764.2,3764.1,3.34327755]
[1760693779046,0.1328,3764.2,3764.1,0.6866]
[1760693779244,0.1328,3764.2,3764.1,0.2295]
[1760693779551,0.1328,3764.2,3764.1,0.6866]
[1760693779752,0.1328,3764.2,3764.1,3.94339526]
[1760693780129,0.1328,3764.5,3764.4,2.65642714]
[1760693780460,0.1328,3764.5,3764.4,3.11356583]
[1760693781050,0.1328,3764.5,3764.4,3.14013048]
[1760693781264,0.1328,3765.0,3764.8,2.65618359]
[1760693781443,0.1328,3765.0,3764.9,0.4743]
[1760693782078,0.1328,3765.0,3764.3,0.4743]
[1760693782230,0.1328,3764.4,3764.1,0.2295]
[1760693782428,0.1328,3764.4,3764.3,2.6565364]
[1760693782731,0.04629957,3765.3,3764.4,2.65646583]
[1760693782732,0.1328,3765.0,3764.4,2.65646583]
[1760693782931,0.1328,3765.0,3764.9,2.65611304]
[1760693783166,0.1328,3765.0,3764.9,3.13041304]
[1760693783369,0.1328,3765.0,3764.5,2.782]
[1760693783581,0.76143219,3765.8,3764.5,2.65637256]
[1760693783731,0.1328,3765.0,3764.9,2.65611304]
[1760693784068,0.132,3765.4,3765.3,2.65583087]
[1760693784279,0.002,3766.1,3765.7,2.65549697]
[1760693784591,0.132,3765.8,3765.7,2.65552264]
[1760693784886,0.132,3765.8,3765.6,2.65561216]
[1760693785031,0.002,3766.1,3765.2,0.2303]
[1760693785240,0.132,3765.5,3765.2,2.88619874]
[1760693785547,0.132,3765.5,3765.2,3.36049874]
[1760693785934,0.132,3765.5,3765.2,2.88619874]
[1760693786136,0.132,3765.5,3765.4,2.65576034]